bitfinex/quotes_ETHUSD_20250214
["timestamp","ask_amount","ask_price","bid_price","bid_amount"]
[1739497220273,5.32,2678.2,2677.9,3.73424]
[1739497220449,5.32,2678.2,2678.1,4.53789]
[1739497220836,0.27,2678.7,2678.2,3.73374]
[1739497221078,0.27,2678.7,2678.3,0.8201]
[1739497221573,0.27,2678.7,2678.3,4.55368]
[1739497221736,0.27,2678.7,2678.3,4.55379]
[1739497221938,0.27,2678.7,2678.3,5.382543]
[1739497222670,9.05291,2678.9,2678.4,3.73356]
[1739497222979,4.00263,2679.1,2678.6,4.54689]
[1739497223195,5.32,2679.2,2678.6,4.54689]
[1739497223852,9.05255,2679.2,2678.6,4.54689]
[1739497224052,3.7327,2679.1,2678.7,0.454689]
[1739497224254,3.7327,2679.1,2678.6,0.8136]
[1739497224482,3.73289,2678.9,2678.6,0.8136]
[1739497224794,0.4496,2678.9,2677.9,0.8083]
[1739497224984,3.73343,2678.5,2677.9,0.8083]
[1739497225294,3.73371,2678.3,2677.9,0.8083]
[1739497225493,4.00471,2678.3,2677.8,5.25]
[1739497225682,4.00471,2678.3,2677.7,0.449674]
[1739497225683,3.73399,2678.1,2677.7,0.449674]
[1739497225980,3.73399,2678.1,2677.6,0.7658]
[1739497226398,4.00471,2678.3,2677.6,4.50048]
[1739497226759,2.246,2678.2,2677.6,4.50048]
[1739497227099,2.246,2678.2,2677.7,3.73445]
[1739497227272,4.00471,2678.3,2677.8,3.73439]
[1739497227569,4.00471,2678.3,2677.8,4.557874]
[1739497228097,0.271,2678.3,2677.8,4.557874]
[1739497228696,0.271,2678.3,2677.9,0.06150258]
[1739497228697,4.00472,2678.3,2677.9,0.06150258]
[1739497231916,4.00471,2678.3,2677.9,0.06150258]
[1739497232063,4.00471,2678.3,2677.9,0.10247965]
[1739497232606,2.517,2678.3,2677.9,0.10247965]
[1739497232755,3.73412,2678.0,2677.9,0.10247965]
[1739497232963,3.73412,2678.0,2677.4,1.0275]
[1739497232964,3.73454,2677.8,2677.4,1.0275]
[1739497233398,2.246,2677.8,2677.5,0.09881966]
[1739497233604,3.73468,2677.6,2677.5,0.09881966]
[1739497233969,5.98068,2677.6,2677.5,0.09881966]
[1739497234903,6.25168,2677.6,2677.5,0.09881966]
[1739497235561,5.98068,2677.6,2677.5,0.09881966]
[1739497235762,6.25168,2677.6,2677.5,0.09881966]
[1739497236761,0.271,2677.6,2677.5,0.09881966]
[1739497237205,5.591,2677.6,2677.4,0.2496]
[1739497237375,9.32568,2677.6,2677.5,0.09991675]
[1739497238108,5.591,2677.6,2677.4,0.2496]
[1739497238313,3.73482,2677.5,2677.4,0.2496]
[1739497239086,5.32,2677.6,2677.4,0.2496]
[1739497239492,5.32,2677.6,2677.5,0.7808]
[1739497243114,3.73442,2677.8,2677.5,0.7808]
[1739497243415,3.7343,2677.9,2677.5,0.7808]
[1739497243727,3.73442,2677.8,2677.6,0.09989142]
[1739497245323,3.73441,2677.8,2677.6,0.09989142]
[1739497245515,3.7345,2677.8,2677.6,0.09989142]
[1739497248388,9.05373,2678.3,2677.9,0.10022054]
[1739497248843,5.32,2678.3,2677.9,3.83439054]
[1739497249134,5.32,2678.3,2678.0,0.7941]
[1739497249297,5.32,2678.3,2678.0,1.30359379]
[1739497249490,5.32,2678.3,2678.1,0.09996731]
[1739497249692,3.73361,2678.4,2678.1,0.09996731]
[1739497252335,3.73361,2678.4,2678.0,0.7941]
[1739497252794,3.73361,2678.4,2678.1,0.09973945]
[1739497253904,3.73373,2678.3,2678.1,0.09973945]
[1739497254337,7.46728,2678.4,2678.1,0.09973945]
[1739497254832,3.73361,2678.4,2678.1,0.09973945]
[1739497255008,3.73381,2678.3,2678.1,0.09973945]
[1739497257425,3.73361,2678.4,2678.1,0.09973945]
[1739497258433,7.46728,2678.4,2678.1,0.09973945]
[1739497258798,3.73361,2678.4,2678.1,0.09973945]
[1739497260742,9.05336,2678.6,2678.1,0.09973945]
[1739497260901,12.78674,2678.6,2678.1,0.09973945]
[1739497261104,9.05336,2678.6,2678.1,0.09973945]
[1739497261340,3.73351,2678.5,2678.1,0.09973945]
[1739497262340,3.73362,2678.4,2678.1,0.09973945]
[1739497263753,9.05336,2678.6,2678.1,3.83370945]
[1739497264470,8.0156,2679.0,2678.3,3.7336]
[1739497264604,3.73288,2678.9,2678.5,0.8038]
[1739497264809,3.73327,2678.7,2678.5,0.8038]
[1739497265011,3.73327,2678.7,2678.6,0.09903054]
[1739497265320,3.73327,2678.7,2678.2,0.8038]
[1739497265514,3.64625852,2678.8,2678.3,0.09892087]
[1739497265711,3.73357,2678.5,2678.2,0.8038]
[1739497266024,3.73357,2678.5,2678.3,0.09892087]
[1739497266348,3.73357,2678.5,2678.2,0.8038]
[1739497266547,3.73357,2678.5,2678.4,0.09892087]
[1739497266722,3.73357,2678.5,2678.2,0.8038]
[1739497267059,3.73357,2678.5,2678.3,0.09892087]
[1739497267560,3.73357,2678.5,2678.4,0.09892087]
[1739497267716,3.7332,2678.7,2678.4,0.09892087]
[1739497267917,3.7332,2678.7,2678.2,0.8038]
[1739497268114,7.46645,2678.7,2678.3,0.09892087]
[1739497268355,3.73356,2678.5,2677.9,3.73426]
[1739497268536,3.73343,2678.5,2678.4,0.09892087]
[1739497268737,3.73393,2678.2,2677.8,0.8055]
[1739497269112,3.73393,2678.2,2677.9,0.09530259]
[1739497269312,6.93058852,2678.2,2677.9,0.09530259]
[1739497269525,6.93058852,2678.2,2677.5,4.52921]
[1739497269526,3.73412,2678.0,2677.5,4.52921]
[1739497269708,5.32,2678.3,2677.7,0.7944]
[1739497270020,9.05372,2678.3,2677.7,4.52885]
[1739497270240,9.05372,2678.3,2677.8,0.09530259]
[1739497270512,3.73385,2678.2,2677.7,0.7944]
[1739497270729,3.73416,2678.0,2677.8,0.09530259]
[1739497270929,3.73387,2678.2,2677.7,0.7944]
[1739497271143,3.73387,2678.2,2677.8,0.09530259]
[1739497271318,3.73411,2678.1,2677.7,0.7944]
[1739497271519,3.73411,2678.1,2677.8,0.09530259]
[1739497271719,3.73411,2678.1,2677.7,0.7944]
[1739497271941,3.73411,2678.1,2677.8,0.09530259]
[1739497272143,3.73411,2678.1,2677.7,0.7944]
[1739497272343,3.73411,2678.1,2677.8,0.09530259]
[1739497272523,3.73411,2678.1,2677.7,0.7944]
[1739497272729,3.73411,2678.1,2677.8,0.09530259]
[1739497273053,3.73411,2678.1,2677.7,0.7944]
[1739497273230,3.73411,2678.1,2677.9,0.09530259]
[1739497273431,3.73411,2678.1,2677.7,0.7944]
[1739497273634,3.73411,2678.1,2678.0,0.09530259]
[1739497273835,7.46782,2678.2,2677.7,0.7944]
[1739497274057,5.59,2678.3,2678.0,0.09530259]
[1739497274264,5.59,2678.3,2677.8,3.73436]
[1739497274562,9.32371,2678.3,2677.9,0.09530259]
[1739497274917,13.05754,2678.3,2677.9,0.09530259]
[1739497275121,9.32371,2678.3,2677.7,4.52881]
[1739497275421,3.73388,2678.2,2677.8,0.09530259]
[1739497275827,3.73388,2678.2,2677.7,0.7944]
[1739497276055,3.73388,2678.2,2677.9,0.09530259]
[1739497276257,9.32371,2678.3,2677.7,4.52892]
[1739497276258,13.05753,2678.3,2677.7,4.52892]
[1739497276453,9.32371,2678.3,2678.0,0.09530259]
[1739497276681,9.32371,2678.3,2677.7,4.52892]
[1739497276824,9.32371,2678.3,2678.1,0.09530259]
[1739497277025,9.32371,2678.3,2677.7,4.52886]
[1739497277354,9.32371,2678.3,2677.8,3.7344]
[1739497277564,9.32371,2678.3,2677.8,3.82970259]
[1739497277918,3.73392,2678.2,2677.8,0.09530259]
[1739497278118,3.73392,2678.2,2677.7,0.7944]
[1739497278324,3.73392,2678.2,2677.8,0.09530259]
[1739497278545,3.73392,2678.2,2677.7,0.7944]
[1739497278747,3.73392,2678.2,2677.8,0.09530259]
[1739497278956,3.73392,2678.2,2677.7,1.620774]
[1739497279146,3.73392,2678.2,2677.9,0.09530259]
[1739497279377,3.73392,2678.2,2677.7,0.7944]
[1739497279559,3.73392,2678.2,2678.0,0.09530259]
[1739497279748,3.73392,2678.2,2677.7,0.7944]
[1739497279949,3.73392,2678.2,2677.8,0.09530259]
[1739497280121,3.73402,2678.1,2677.7,0.7944]
[1739497280322,3.73426,2677.9,2677.8,0.09530259]
[1739497280555,3.73426,2677.9,2677.5,0.7696]
[1739497280757,3.73456,2677.7,2677.4,0.2496]
[1739497281425,3.73429,2677.9,2677.4,3.98453]
[1739497281643,2.246,2677.9,2677.4,0.2496]
[1739497281865,3.73454,2677.7,2677.4,0.2496]
[1739497282421,0.4496,2677.7,2677.4,0.2496]
[1739497282665,7.38063852,2677.9,2677.4,0.2496]
[1739497282862,3.73445,2677.8,2677.4,0.2496]
[1739497283068,3.73469,2677.6,2677.4,0.2496]
[1739497284578,3.73468,2677.6,2677.4,0.2496]
[1739497285677,11.30048,2677.8,2677.4,0.2496]
[1739497285882,3.73473,2677.6,2677.4,0.2496]
[1739497288787,3.73473,2677.6,2677.5,0.09620413]
[1739497290560,3.73454,2677.7,2677.5,0.09620413]
[1739497291064,3.73454,2677.7,2677.4,0.2496]
[1739497291681,3.73454,2677.7,2677.5,0.09621256]
[1739497292082,3.73468,2677.6,2677.5,0.09621256]
[1739497292284,12.789,2677.8,2677.5,0.09621256]
[1739497292489,3.73456,2677.7,2677.5,0.09621256]
[1739497292691,9.05448,2677.8,2677.5,0.09621256]
[1739497294956,12.78897,2677.8,2677.5,0.09621256]
[1739497295462,9.05448,2677.8,2677.5,0.09621256]
[1739497295857,3.73457,2677.7,2677.5,0.09621256]
[1739497296397,3.73468,2677.6,2677.5,0.09621256]
[1739497296757,3.73456,2677.7,2677.5,0.09621256]
[1739497296957,11.30048,2677.8,2677.5,0.09621256]
[1739497297158,3.73454,2677.7,2677.5,0.09621256]
[1739497297891,11.30048,2677.8,2677.4,0.2496]
[1739497298080,11.30048,2677.8,2677.5,0.09655803]
[1739497298494,3.73457,2677.7,2677.5,0.09655803]
[1739497298703,5.32,2677.8,2677.5,0.09655803]
[1739497298895,5.32,2677.8,2677.4,0.2496]
[1739497299091,5.32,2677.8,2677.5,0.09655803]
[1739497299267,9.05441,2677.8,2677.5,0.09655803]
[1739497299808,9.05441,2677.8,2677.6,0.8256]
[1739497300367,9.05441,2677.8,2677.7,0.09655803]
[1739497301063,9.05441,2677.8,2677.4,1.0822]
[1739497301289,3.73475,2677.6,2677.4,1.0822]
[1739497301495,3.73475,2677.6,2677.5,0.09655803]
[1739497301714,9.05447,2677.8,2677.5,0.09655803]
[1739497302013,7.38093852,2677.6,2677.5,0.09655803]
[1739497302182,14.94693852,2677.6,2677.5,0.09655803]
[1739497302386,5.98082,2677.5,2677.4,0.2496]
[1739497302763,6.98042,2677.5,2677.4,0.2496]
[1739497302970,15.30042,2677.5,2677.4,0.2496]
[1739497305177,15.7773196,2677.5,2677.4,0.2496]
[1739497306015,15.31542,2677.5,2677.4,0.2496]
[1739497309979,15.7773196,2677.5,2677.4,0.2496]
[1739497310375,15.7773196,2677.5,2676.7,0.0969532]
[1739497310580,13.17805852,2676.8,2676.7,0.0969532]
[1739497310784,18.76805852,2676.8,2676.7,0.0969532]
[1739497311057,28.12305852,2676.8,2676.7,0.0969532]
[1739497317098,5.98162,2677.0,2676.7,0.0969532]
[1739497317298,4.00562,2677.0,2676.8,0.09782265]
[1739497317600,4.00562,2677.0,2676.7,0.0969532]
[1739497317800,4.00562,2677.0,2676.9,0.09848894]
[1739497318002,7.20210852,2677.1,2676.7,0.0969532]
[1739497318332,6.93210852,2677.1,2676.7,0.0969532]
[1739497318542,7.20210852,2677.1,2676.8,0.09848894]
[1739497318742,5.98117,2677.3,2676.9,0.8114]
[1739497319037,3.64625852,2677.4,2677.0,0.8235]
[1739497319038,6.93163852,2677.4,2677.0,0.8235]
[1739497319407,6.93163852,2677.4,2677.1,0.09848894]
[1739497319611,0.27,2677.5,2677.2,0.7833]
[1739497319914,3.19665852,2677.7,2677.2,0.7833]
[1739497320110,3.19665852,2677.7,2677.3,0.88178894]
[1739497320693,3.73443,2677.8,2677.3,0.7833]
[1739497321127,3.73443,2677.8,2677.4,0.09848894]
[1739497321299,0.27,2677.9,2677.5,0.7541]
[1739497321493,13.39479852,2678.0,2677.5,0.7541]
[1739497321693,3.73433,2677.9,2677.5,0.7541]
[1739497321950,3.73433,2677.9,2677.6,0.09848894]
[1739497322740,9.05433,2677.9,2677.5,0.7541]
[1739497322942,9.05433,2677.9,2677.6,0.09848894]
[1739497323140,9.05433,2677.9,2677.5,0.7541]
[1739497323346,3.73464,2677.7,2677.6,0.09848894]
[1739497323722,3.73468,2677.6,2677.5,0.7541]
[1739497324031,3.73468,2677.6,2677.5,0.09848894]
[1739497324401,3.7351,2677.3,2677.2,0.7656]
[1739497324797,3.7351,2677.3,2677.2,0.86408894]
[1739497325001,5.32,2677.4,2677.2,0.86408894]
[1739497326142,3.7351,2677.3,2677.2,0.09848894]
[1739497326347,3.7351,2677.3,2677.0,0.8026]
[1739497327317,3.7351,2677.3,2677.1,0.09848894]
[1739497329137,12.79032,2677.3,2677.1,0.09848894]
[1739497329493,5.32,2677.3,2677.1,0.09848894]
[1739497329981,5.32,2677.3,2677.2,0.8254]
[1739497330345,5.32,2677.3,2677.2,1.37995794]
[1739497330983,5.32,2677.3,2677.2,0.92388894]
[1739497333047,5.32,2677.3,2677.2,3.83372894]
[1739497333256,5.32,2677.3,2677.2,4.65712894]
[1739497333885,2.246,2677.9,2677.2,4.65712894]
[1739497333886,7.566,2677.9,2677.6,3.7346]
[1739497334095,7.566,2677.9,2677.7,0.7819]
[1739497334589,7.566,2677.9,2677.8,0.09725768]
[1739497334786,11.30026,2677.9,2677.3,0.7819]
[1739497335109,5.98073,2677.6,2677.4,0.09708067]
[1739497335246,5.98082,2677.5,2677.4,0.09708067]
[1739497335646,5.98097,2677.4,2677.3,0.2496]
[1739497335867,2.246,2677.4,2677.3,0.2496]
[1739497336073,5.98096,2677.4,2677.3,0.34668067]
[1739497336425,5.98096,2677.4,2677.3,0.2496]
[1739497336626,5.98096,2677.4,2677.3,0.34684925]
[1739497336924,5.98096,2677.4,2677.3,0.2496]
[1739497337260,8.9808,2677.6,2677.3,1.0089]
[1739497337459,5.9808,2677.6,2677.3,1.0089]
[1739497337700,2.246,2677.6,2677.3,1.0089]
[1739497337861,2.246,2677.6,2677.3,4.74399]
[1739497338060,2.246,2677.8,2677.3,5.218389]
[1739497338599,2.246,2677.8,2677.4,0.09741786]
[1739497338766,2.246,2677.8,2677.3,5.218279]
[1739497338966,2.246,2677.8,2677.4,0.09741786]
[1739497341061,3.73454,2677.7,2677.6,0.8304]
[1739497341266,5.98048,2677.8,2677.4,0.92781786]
[1739497341466,3.73456,2677.7,2677.6,0.09732512]
[1739497341782,2.246,2677.7,2677.6,0.09674345]
[1739497341981,5.98054,2677.7,2677.6,0.09674345]
[1739497342213,5.98054,2677.7,2677.3,0.2496]
[1739497342214,3.73496,2677.4,2677.3,0.2496]
[1739497342371,9.17761852,2677.4,2677.3,0.2496]
[1739497342712,24.85021852,2677.4,2677.3,0.2496]
[1739497343405,29.85021852,2677.4,2677.3,0.2496]
[1739497343607,30.31211812,2677.4,2677.3,0.2496]
[1739497343777,29.85021852,2677.4,2677.3,0.2496]
[1739497344116,27.85021852,2677.4,2677.3,0.2496]
[1739497344471,28.12021852,2677.4,2677.3,0.2496]
[1739497344909,24.67061852,2677.4,2677.3,0.2496]
[1739497345066,7.566,2677.4,2677.3,0.2496]
[1739497345269,11.30096,2677.4,2677.3,0.2496]
[1739497345706,15.04761852,2677.4,2677.3,0.2496]
[1739497345879,15.49721852,2677.4,2677.3,0.2496]
[1739497346301,24.85021852,2677.4,2677.3,0.2496]
[1739497347373,26.85021852,2677.4,2677.3,0.2496]
[1739497348512,26.86521852,2677.4,2677.3,0.2496]
[1739497349471,26.85021852,2677.4,2677.3,0.2496]
[1739497350511,26.86521852,2677.4,2677.3,0.2496]
[1739497350809,29.86521852,2677.4,2677.3,0.2496]
[1739497354135,30.32711812,2677.4,2677.3,0.2496]
[1739497354290,6.4314,2676.8,2676.7,0.0969532]
[1739497354491,26.86155852,2676.8,2676.7,0.0969532]
[1739497355510,24.86155852,2676.8,2676.7,0.0969532]
[1739497355828,26.85405852,2676.8,2676.7,0.0969532]
[1739497356125,14.94805852,2676.8,2676.7,0.0969532]
[1739497356332,14.49845852,2676.8,2676.7,0.0969532]
[1739497359213,14.76845852,2676.8,2676.7,0.0969532]
[1739497360155,14.76845852,2676.8,2676.7,0.19503727]
[1739497360289,14.76845852,2676.8,2676.7,0.0969532]
[1739497362323,5.59,2676.8,2676.7,0.19503727]
[1739497362534,5.32,2676.8,2676.7,0.0969532]
[1739497362827,9.0558,2676.8,2676.7,0.0969532]
[1739497363238,9.0558,2676.8,2676.7,0.19503727]
[1739497363759,11.3018,2676.8,2676.7,0.19503727]
[1739497363894,14.49845852,2676.8,2676.7,0.0969532]
[1739497364438,14.54845852,2676.8,2676.7,0.0969532]
[1739497364595,15.09845852,2676.8,2676.7,0.0969532]
[1739497364797,24.90305852,2676.8,2676.7,0.0969532]
[1739497365119,26.91055852,2676.8,2676.7,0.0969532]
[1739497366255,24.91055852,2676.8,2676.7,0.0969532]
[1739497370879,28.18055852,2676.8,2676.7,0.0969532]
[1739497371672,30.18055852,2676.8,2676.7,0.0969532]
[1739497373552,30.18805852,2676.8,2676.7,0.0969532]
[1739497373887,30.64995812,2676.8,2676.7,0.0969532]
[1739497379584,31.08417568,2676.8,2676.7,0.0969532]
[1739497381019,30.64995812,2676.8,2676.7,0.0969532]
[1739497381423,5.98292,2676.0,2675.1,1.67472215]
[1739497381626,4.00711,2675.9,2675.7,0.7725]
[1739497381799,9.32711,2675.9,2675.7,0.7725]
[1739497382141,9.32711,2675.9,2675.8,0.09590326]
[1739497382320,3.7372,2675.8,2675.7,0.7725]
[1739497382898,5.9832,2675.8,2675.1,1.67472215]
[1739497383098,3.73758,2675.6,2675.2,0.7725]
[1739497383320,2.246,2675.5,2675.2,0.7725]
[1739497385373,5.32,2675.6,2675.2,0.7725]
[1739497385753,11.30449,2675.6,2675.2,0.7725]
[1739497386334,7.567,2675.6,2675.2,0.7725]
[1739497386677,11.30447,2675.6,2675.2,0.7725]
[1739497387375,3.73764,2675.5,2675.2,0.7725]
[1739497387870,9.05748,2675.6,2675.2,0.7725]
[1739497388076,5.32,2675.6,2675.2,0.7725]
[1739497388251,3.73764,2675.5,2675.2,0.7725]
[1739497388482,3.73783,2675.4,2675.2,0.7725]
[1739497388795,5.32,2675.4,2675.2,0.7725]
[1739497389010,3.73789,2675.3,2675.2,0.7725]
[1739497389168,8.51665852,2675.4,2674.5,0.8302]
[1739497389373,3.73832,2675.0,2674.5,0.8302]
[1739497389868,3.73832,2675.0,2674.6,0.8302]
[1739497390075,3.73863,2674.8,2674.6,0.8302]
[1739497390272,3.73873,2674.7,2674.6,0.8302]
[1739497391270,3.73873,2674.7,2674.1,0.8302]
[1739497391271,3.73906,2674.5,2674.1,0.8302]
[1739497391470,3.73917,2674.4,2674.1,0.8302]
[1739497391683,3.73911,2674.5,2674.1,0.8302]
[1739497392765,3.73935,2674.3,2674.1,0.8302]
[1739497393162,2.247,2674.2,2674.1,0.8302]
[1739497393471,3.19665852,2674.5,2674.1,0.8302]
[1739497393673,3.73896,2674.6,2674.1,0.91225206]
[1739497394383,3.7196,2675.0,2674.2,4.56243]
[1739497394384,3.73852,2674.9,2674.2,4.56243]
[1739497394698,0.27,2674.6,2674.4,0.823]
[1739497394875,3.73901,2674.5,2674.4,0.823]
[1739497395278,3.73901,2674.5,2674.4,0.90506892]
[1739497395867,3.73901,2674.5,2674.4,0.08206892]
[1739497396198,3.73901,2674.5,2674.2,0.8115]
[1739497396199,5.98601,2674.5,2674.2,0.8115]
[1739497396502,5.98616,2674.4,2674.3,0.08206892]
[1739497396862,3.73957,2674.1,2674.0,0.9582397]
[1739497397404,3.73957,2674.1,2674.0,1.04030862]
[1739497397962,3.73957,2674.1,2674.0,0.9582397]
[1739497398702,3.73957,2674.1,2674.0,1.04030862]
[1739497399006,3.73957,2674.1,2674.0,0.9582397]
[1739497399304,9.60957,2674.1,2674.0,0.22880862]
[1739497399779,9.60957,2674.1,2674.0,0.1467397]
[1739497399979,9.60957,2674.1,2674.0,0.22880862]
[1739497400389,5.32,2674.1,2674.0,0.22880862]
[1739497400910,12.30617,2674.1,2674.0,0.22880862]
[1739497401306,12.30617,2674.1,2674.0,0.1467397]
[1739497402178,11.85657,2674.1,2674.0,0.1467397]
[1739497402581,5.32,2674.1,2674.0,0.1467397]
[1739497402781,5.591,2674.1,2674.0,0.1467397]
[1739497403085,5.591,2674.1,2674.0,0.22633994]
[1739497403498,5.591,2674.1,2674.0,0.1467397]
[1739497403925,9.33057,2674.1,2674.0,0.22638211]
[1739497404810,5.591,2674.1,2674.0,0.22638211]
[1739497405013,5.32,2674.1,2674.0,0.22638211]
[1739497405192,5.32,2674.1,2674.0,1.01148211]
[1739497405388,5.32,2674.1,2674.0,1.48662032]
[1739497405625,5.32,2674.1,2674.0,1.01148211]
[1739497406726,7.567,2674.1,2674.0,1.01148211]
[1739497407030,11.30657,2674.1,2674.0,1.01148211]
[1739497408125,11.30657,2674.1,2674.0,0.9318397]
[1739497408504,11.30657,2674.1,2674.0,1.01124593]
[1739497408704,5.32,2674.1,2674.0,1.01124593]
[1739497409106,3.73924,2674.4,2674.0,1.01124593]
[1739497409315,4.01008,2674.5,2674.1,0.7999]
[1739497409518,0.271,2674.5,2674.1,0.7999]
[1739497409831,6.25702,2674.5,2674.1,0.7999]
[1739497410006,9.05894,2674.6,2674.2,0.07940623]
[1739497410328,5.32,2674.6,2674.3,0.8169]
[1739497410494,9.05892,2674.6,2674.3,0.8169]
[1739497410694,9.05892,2674.6,2674.4,0.07920383]
[1739497411133,12.79789,2674.6,2674.3,0.8169]
[1739497411333,3.73906,2674.5,2674.3,0.8169]
[1739497411934,7.567,2674.6,2674.4,0.07920383]
[1739497412229,5.32,2674.6,2674.4,0.07920383]
[1739497412427,3.73875,2674.7,2674.5,0.8169]
[1739497412630,3.73875,2674.7,2674.5,0.89610383]
[1739497412801,3.73869,2674.8,2674.5,0.89610383]
[1739497413003,3.73869,2674.8,2674.5,0.8169]
[1739497413308,3.73869,2674.8,2674.6,0.07920383]
[1739497414391,3.73873,2674.7,2674.6,0.07920383]
[1739497414707,3.73869,2674.8,2674.5,0.8169]
[1739497415426,3.73869,2674.8,2674.6,0.07920383]
[1739497415627,7.47742,2674.8,2674.6,0.07920383]
[1739497415790,3.73873,2674.7,2674.6,0.07920383]
[1739497416001,3.73869,2674.8,2674.6,0.07920383]
[1739497416197,3.73869,2674.8,2674.5,0.8169]
[1739497417241,3.73874,2674.7,2674.5,0.8169]
[1739497417741,3.73874,2674.7,2674.6,0.07920383]
[1739497418134,3.73874,2674.7,2674.5,0.8169]
[1739497418334,3.73874,2674.7,2674.6,0.07906893]
[1739497418750,3.73864,2674.8,2674.6,0.07906893]
[1739497418952,7.567,2674.9,2674.6,0.07906893]
[1739497419155,7.567,2674.9,2674.7,0.7947]
[1739497419319,11.30547,2674.9,2674.7,0.7947]
[1739497419719,11.30547,2674.9,2674.8,0.07906893]
[1739497419945,7.567,2674.9,2674.8,0.07906893]
[1739497420150,7.567,2674.9,2674.7,0.7947]
[1739497420458,3.73859,2674.8,2674.7,0.7947]
[1739497421263,11.30547,2674.9,2674.7,0.7947]
[1739497421554,7.567,2674.9,2674.7,0.7947]
[1739497421758,3.73859,2674.8,2674.7,0.7947]
[1739497422323,3.73859,2674.8,2674.3,0.005962]
[1739497422324,3.73888,2674.6,2674.3,0.005962]
[1739497422473,3.73903,2674.5,2674.3,0.005962]
[1739497422668,3.73915,2674.4,2674.3,0.005962]
[1739497423069,5.98615,2674.4,2674.3,0.005962]
[1739497423861,2.247,2674.4,2674.3,0.005962]
[1739497424895,5.32,2674.5,2674.3,0.005962]
[1739497425101,5.32,2674.5,2674.3,0.08498877]
[1739497425398,5.32,2674.5,2674.3,0.005962]
[1739497425595,9.05902,2674.5,2674.4,0.07902677]
[1739497425960,9.05902,2674.5,2674.1,0.7785]
[1739497426173,3.73916,2674.4,2674.1,0.7785]
[1739497427010,12.79815,2674.5,2674.1,0.7785]
[1739497427394,3.73933,2674.3,2674.1,0.7785]
[1739497427694,5.98633,2674.3,2674.0,0.1467397]
[1739497428255,9.72575,2674.3,2674.0,0.1467397]
[1739497428489,5.98633,2674.3,2674.0,0.1467397]
[1739497428680,2.247,2674.4,2674.0,0.1467397]
[1739497428980,5.98617,2674.4,2674.0,0.1467397]
[1739497429276,2.247,2674.4,2674.0,0.1467397]
[1739497429450,2.247,2674.4,2674.1,0.8208]
[1739497429645,5.32,2674.5,2674.1,0.8208]
[1739497429873,5.32,2674.5,2674.2,0.8208]
[1739497430082,5.32,2674.5,2674.3,0.8208]
[1739497430878,5.32,2674.5,2674.3,4.56009]
[1739497431247,5.32,2674.5,2674.3,0.8208]
[1739497433191,11.5767,2674.8,2674.3,0.8208]
[1739497433596,3.73874,2674.7,2674.3,0.8208]
[1739497434208,3.73889,2674.6,2674.3,0.8208]
[1739497434882,3.73874,2674.7,2674.3,0.8208]
[1739497435384,3.73889,2674.6,2674.3,0.8208]
[1739497435694,3.73874,2674.7,2674.3,0.8208]
[1739497436679,7.47756,2674.7,2674.3,0.8208]
[1739497436880,3.73874,2674.7,2674.3,0.8208]
[1739497437193,7.838,2674.8,2674.3,0.8208]
[1739497437374,5.32,2674.8,2674.5,0.827]
[1739497437710,5.32,2674.8,2674.6,0.079187]
[1739497438829,9.0586,2674.8,2674.6,0.079187]
[1739497439135,12.7973,2674.8,2674.6,0.079187]
[1739497439494,9.0586,2674.8,2674.6,0.079187]
[1739497440106,9.0586,2674.8,2674.5,0.827]
[1739497440475,9.0586,2674.8,2674.6,0.07913642]
[1739497441012,5.32,2674.8,2674.6,0.07913642]
[1739497442190,3.73853,2674.9,2674.6,0.07913642]
[1739497442409,5.98553,2674.9,2674.6,0.07913642]
[1739497442595,5.32,2675.0,2674.6,0.07913642]
[1739497442596,3.73873,2674.7,2674.6,0.07913642]
[1739497442804,3.73893,2674.6,2674.2,0.8076]
[1739497443112,2.247,2674.4,2674.0,0.9456397]
[1739497443277,3.73931,2674.3,2674.0,0.9456397]
[1739497443808,2.247,2674.4,2674.0,0.9456397]
[1739497444108,9.72463,2674.7,2674.0,4.6853397]
[1739497444309,2.247,2674.8,2674.3,3.73916]
[1739497444810,2.247,2674.8,2674.4,0.7825]
[1739497445046,3.7385,2674.9,2674.4,0.7825]
[1739497445245,5.9855,2674.9,2674.4,0.7825]
[1739497445407,9.72408,2674.9,2674.4,0.7825]
[1739497445615,7.4776,2674.7,2674.4,0.7825]
[1739497445944,3.73874,2674.7,2674.4,0.7825]
[1739497447042,3.73874,2674.7,2674.2,3.73943]
[1739497447247,3.73874,2674.7,2674.2,0.7519]
[1739497447746,3.73874,2674.7,2674.2,4.49133]
[1739497447920,5.98552,2674.9,2674.3,3.73928]
[1739497448134,5.98552,2674.9,2674.4,4.49102]
[1739497448430,5.98552,2674.9,2674.4,0.7519]
[1739497448844,2.247,2674.9,2674.5,0.7519]
[1739497449049,2.247,2674.9,2674.5,4.49091]
[1739497449246,5.98547,2674.9,2674.5,0.7519]
[1739497449447,3.73859,2674.8,2674.1,3.73953]
[1739497449657,3.73887,2674.6,2674.2,0.7519]
[1739497449951,6.43519,2674.8,2674.2,0.7519]
[1739497450152,6.43519,2674.8,2674.3,3.73921]
[1739497450153,2.247,2674.8,2674.3,3.73921]
[1739497450351,2.247,2674.8,2674.4,0.7519]
[1739497450511,2.247,2674.8,2674.4,4.49103]
[1739497451048,2.247,2674.8,2674.4,0.7519]
[1739497451227,3.73874,2674.7,2674.4,0.7519]
[1739497451611,7.47759,2674.7,2674.4,0.7519]
[1739497451811,7.47759,2674.7,2674.2,0.7519]
[1739497452010,7.471629,2674.7,2674.2,0.7519]
[1739497452313,3.73889,2674.6,2674.2,1.21571197]
[1739497453623,7.471619,2674.7,2674.2,1.21571197]
[1739497453824,3.732779,2674.7,2674.3,0.07876541]